fUST/lending_fUST_20251007
["ID","MTS","AMOUNT","RATE_DAILY","PERIOD"]
[389794585,1759851043045,-25940.6630512,0.00023,2]
[389794586,1759851043055,-695.0,0.0002303,2]
[389794587,1759851043065,-695.0,0.0002303,2]
[389794588,1759851043074,-800.0,0.00023034,2]
[389794589,1759851043084,-653.167,0.00023036,2]
[389794590,1759851043093,-800.0,0.00023041,2]
[389794592,1759851043107,-199.0,0.00023068,9]
[389794593,1759851043117,-500.0,0.00023072,2]
[389794594,1759851043126,-3000.0,0.00023084,2]
[389794595,1759851043136,-3000.0,0.00023084,2]
[389794596,1759851043146,-3000.0,0.00023084,2]
[389794598,1759851043155,-695.0,0.00023089,2]
[389794600,1759851043165,-666.66666667,0.00023095,6]
[389794602,1759851043175,-666.66666667,0.00023095,6]
[389794605,1759851043184,-666.66666667,0.00023095,6]
[389794607,1759851043194,-2000.0,0.000231,2]
[389794609,1759851043204,-151.0,0.000231,7]
[389794611,1759851043215,-200.0,0.000231,2]
[389794613,1759851043224,-695.0,0.00023118,2]
[389794615,1759851043234,-1437.02064672,0.00023127,2]
[389794616,1759851043243,-500.0,0.00023147,2]
[389794618,1759851043253,-695.0,0.00023148,2]
[389794619,1759851043262,-1000.0,0.00023148,2]
[389794621,1759851043272,-1000.0,0.00023148,2]
[389794622,1759851043281,-695.0,0.00023232,2]
[389794623,1759851043293,-666.66666667,0.00023233,8]
[389794624,1759851043303,-666.66666667,0.00023233,8]
[389794625,1759851043313,-666.66666667,0.00023233,8]
[389794626,1759851043322,-153.151123,0.0002325,3]
[389794627,1759851043332,-1000.0,0.00023265,5]
[389794628,1759851043341,-153.151123,0.00023286,2]
[389794629,1759851043351,-500.0,0.00023287,2]
[389794630,1759851043361,-500.0,0.00023296,2]
[389794631,1759851043371,-760.0,0.00023306,2]
[389794632,1759851043381,-4000.0,0.00023308,2]
[389794633,1759851043391,-500.0,0.00023356,2]
[389794634,1759851043401,-1437.02064672,0.00023359,2]
[389794635,1759851043410,-695.0,0.00023367,2]
[389794636,1759851043420,-666.66666667,0.0002337,10]
[389794637,1759851043429,-666.66666667,0.0002337,10]
[389794638,1759851043439,-666.66666667,0.0002337,10]
[389794639,1759851043449,-166.37053027,0.00023391,5]
[389794640,1759851043459,-292.02407128,0.00023391,5]
[389794641,1759851043468,-1000.0,0.000234,2]
[389794642,1759851043478,-1000.0,0.000235,2]
[389794643,1759851043488,-666.66666667,0.00023507,12]
[389794644,1759851043497,-666.66666667,0.00023507,12]
[389794645,1759851043507,-200.0,0.0002351,2]
[389794646,1759851043517,-1500.0,0.00023516,2]
[389794647,1759851043527,-503.8692163,0.00023516,2]
[389794648,1759851043536,-1500.0,0.00023516,2]
[389794649,1759851043547,-1500.0,0.00023516,2]
[389794650,1759851043557,-1500.0,0.00023516,2]
[389794651,1759851043567,-1500.0,0.00023516,2]
[389794652,1759851043576,-1500.0,0.00023516,2]
[389794653,1759851043585,-1500.0,0.00023516,2]
[389794654,1759851043595,-1500.0,0.00023516,2]
[389794655,1759851043604,-1500.0,0.00023516,2]
[389794656,1759851043614,-1500.0,0.00023516,2]
[389794657,1759851043623,-1500.0,0.00023516,2]
[389794658,1759851043635,-1500.0,0.00023516,2]
[389794659,1759851043644,-695.0,0.00023522,2]
[389794660,1759851043654,-151.0,0.000236,10]
[389794661,1759851043663,-153.151123,0.000236,3]
[389794662,1759851043672,-151.0,0.000236,8]
[389794663,1759851043682,-500.0,0.00023602,2]
[389794664,1759851043691,-3500.0,0.00023632,2]
[389794665,1759851043700,-3500.0,0.00023632,2]
[389794666,1759851043710,-3500.0,0.00023632,2]
[389794667,1759851043720,-666.66666667,0.00023645,14]
[389794668,1759851043729,-666.66666667,0.00023645,14]
[389794669,1759851043738,-500.0,0.00023645,2]
[389794670,1759851043747,-695.0,0.00023661,2]
[389794671,1759851043757,-500.0,0.0002369,2]
[389794672,1759851043767,-341.61620481,0.0002369,2]
[389794673,1759851043776,-500.0,0.0002369,2]
[389794674,1759851043785,-500.0,0.0002369,2]
[389794675,1759851043796,-500.0,0.0002369,2]
[389794676,1759851043809,-500.0,0.0002369,2]
[389794677,1759851043819,-500.0,0.0002369,2]
[389794678,1759851043828,-500.0,0.0002369,2]
[389794679,1759851043839,-500.0,0.0002369,2]
[389794680,1759851043848,-500.0,0.0002369,2]
[389794681,1759851043857,-1500.0,0.00023696,2]
[389794682,1759851043867,-1500.0,0.00023696,2]
[389794683,1759851043877,-2000.0,0.000237,2]
[389794684,1759851043887,-500.0,0.00023713,2]
[389794685,1759851043897,-695.0,0.00023721,2]
[389794686,1759851043906,-630.0,0.00023731,2]
[389794687,1759851043915,-2158.0,0.00023731,2]
[389794688,1759851043925,-1000.0,0.00023737,20]
[389794689,1759851043934,-1437.02064672,0.0002377,2]
[389794690,1759851043943,-770.30828928,0.0002378,2]
[389794691,1759851043952,-2144.70747456,0.00023782,2]
[389794692,1759851043961,-500.0,0.00023794,2]
[389794693,1759851043971,-500.0,0.00023794,2]
[389794694,1759851043980,-500.0,0.00023794,2]
[389794695,1759851043989,-500.0,0.00023794,2]
[389794696,1759851043999,-500.0,0.00023794,2]
[389794697,1759851044007,-500.0,0.00023794,2]
[389794698,1759851044017,-150.56950836,0.00023794,2]
[389794699,1759851044026,-151.0,0.000238,5]
[389794700,1759851044035,-99384.21718667,0.000238,2]
[389794701,1759851044045,-6485.15,0.000238,2]
[389794702,1759851044054,-151.0,0.000238,7]
[389794703,1759851044063,-221.129594,0.000238,7]
[389794704,1759851044072,-151.0,0.000238,7]
[389794706,1759851044081,-221.129594,0.000238,7]
[389794707,1759851044091,-151.0,0.000238,7]
[389794708,1759851044100,-221.129594,0.000238,7]
[389794710,1759851044110,-163.125144,0.000238,7]
[389794711,1759851044119,-151.0,0.000238,7]
[389794712,1759851044129,-221.129594,0.000238,7]
[389794713,1759851044138,-151.0,0.000238,7]
[389794714,1759851044147,-500.0,0.00023817,2]
[389794715,1759851044156,-500.0,0.0002384,2]
[389794716,1759851044166,-860.0,0.00023854,2]
[389794717,1759851044175,-4569.27703144,0.00023856,2]
[389794718,1759851044185,-2000.0,0.000239,2]
[389794719,1759851044195,-150.0,0.000239,2]
[389794720,1759851044205,-1000.0,0.000239,2]
[389794721,1759851044215,-151.0,0.000239,7]
[389794722,1759851044224,-151.0,0.000239,7]
[389794723,1759851044233,-151.0,0.000239,7]
[389794724,1759851044242,-158.756521,0.000239,7]
[389794725,1759851044252,-158.756521,0.000239,7]
[389794726,1759851044262,-153.134092,0.000239,7]
[389794727,1759851044271,-158.756521,0.000239,7]
[389794728,1759851044280,-151.0,0.000239,7]
[389794729,1759851044289,-158.756521,0.000239,7]
[389794730,1759851044299,-239.745371,0.000239,7]
[389794731,1759851044308,-151.0,0.000239,7]
[389794732,1759851044318,-239.745371,0.000239,7]
[389794733,1759851044327,-239.745371,0.000239,7]
[389794734,1759851044337,-239.745371,0.000239,7]
[389794735,1759851044347,-183.738867,0.000239,7]
[389794736,1759851044357,-151.0,0.000239,7]
[389794737,1759851044368,-151.0,0.000239,7]
[389794738,1759851044378,-153.068941,0.000239,7]
[389794739,1759851044388,-151.0,0.00023916,2]
[389794740,1759851044397,-168.99728248,0.00023916,2]
[389794742,1759851044407,-230.01271824,0.00023916,2]
[389794743,1759851044416,-151.0,0.00023916,2]
[389794744,1759851044426,-151.29688684,0.00023916,2]
[389794745,1759851044436,-151.18641285,0.00023916,2]
[389794746,1759851044445,-151.0,0.00023916,2]
[389794747,1759851044455,-151.0,0.00023916,2]
[389794748,1759851044465,-151.0,0.00023916,2]
[389794749,1759851044476,-151.57643874,0.00023916,2]
[389794750,1759851044486,-500.0,0.00023916,2]
[389794751,1759851044496,-500.0,0.00023916,2]
[389794752,1759851044507,-151.0,0.00023916,2]
[389794753,1759851044518,-500.0,0.00023916,2]
[389794754,1759851044528,-500.0,0.00023916,2]
[389794755,1759851044538,-500.0,0.00023916,2]
[389794756,1759851044548,-215.13416699,0.00023916,2]
[389794758,1759851044558,-500.0,0.00023916,2]
[389794759,1759851044567,-500.0,0.00023916,2]
[389794761,1759851044577,-151.0,0.00023916,2]
[389794763,1759851044587,-151.0,0.00023916,2]
[389794764,1759851044596,-301.999999,0.00023916,2]
[389794765,1759851044606,-151.0,0.00023916,2]
[389794766,1759851044615,-151.0,0.00023916,2]
[389794767,1759851044624,-151.0,0.00023916,2]
[389794768,1759851044633,-151.0,0.00023916,2]
[389794769,1759851044643,-1235.0,0.00023916,2]
[389794770,1759851044652,-151.0,0.00023916,2]
[389794771,1759851044661,-151.43135759,0.00023916,2]
[389794772,1759851044671,-151.0,0.00023916,2]
[389794773,1759851044680,-151.0,0.00023916,2]
[389794774,1759851044690,-500.0,0.00023916,2]
[389794775,1759851044700,-666.66666667,0.00023919,18]
[389794776,1759851044709,-666.66666667,0.00023919,18]
[389794777,1759851044719,-5493.8666653,0.00023921,2]
[389794778,1759851044729,-153.151123,0.0002395,3]
[389794779,1759851044739,-704.6785776,0.00023967,2]
[389794780,1759851044749,-179.00311502,0.00023967,2]
[389794781,1759851044759,-500.0,0.00023973,2]
[389794782,1759851044768,-695.0,0.00023976,2]
[389794783,1759851044778,-695.0,0.00023991,2]
[389794784,1759851044787,-999.17288652,0.00023993,2]
[389794785,1759851044992,-695.0,0.00023997,2]
[389794786,1759851045002,-160.0,0.00024,7]
[389794787,1759851045012,-175.0,0.00024,3]
[389794788,1759851045023,-175.0,0.00024,3]
[389794789,1759851045032,-175.0,0.00024,3]
[389794790,1759851045042,-174.8657094,0.00024,3]
[389794791,1759851045051,-152.0,0.00024,3]
[389794792,1759851045061,-152.0,0.00024,3]
[389794793,1759851045071,-152.0,0.00024,3]
[389794794,1759851045080,-152.0,0.00024,3]
[389794795,1759851045089,-152.0,0.00024,3]
[389794796,1759851045099,-152.0,0.00024,3]
[389794797,1759851045108,-152.0,0.00024,3]
[389794798,1759851045118,-152.0,0.00024,3]
[389794799,1759851045127,-152.0,0.00024,3]
[389794800,1759851045137,-152.0,0.00024,3]
[389794801,1759851045148,-152.0,0.00024,3]
[389794802,1759851045157,-152.0,0.00024,3]
[389794803,1759851045167,-152.0,0.00024,3]
[389794804,1759851045177,-152.0,0.00024,3]
[389794805,1759851045186,-152.0,0.00024,3]
[389794806,1759851045196,-152.0,0.00024,3]
[389794807,1759851045206,-152.0,0.00024,3]
[389794808,1759851045215,-152.0,0.00024,3]
[389794809,1759851045225,-152.0,0.00024,3]
[389794810,1759851045235,-152.0,0.00024,3]
[389794811,1759851045245,-215.33827402,0.00024,3]
[389794812,1759851045254,-329.0,0.00024,3]
[389794813,1759851045264,-329.0,0.00024,3]
[389794814,1759851045274,-3089.16571772,0.00024,6]
[389794815,1759851045284,-329.0,0.00024,3]
[389794816,1759851045294,-329.0,0.00024,3]
[389794817,1759851045304,-329.0,0.00024,3]
[389794818,1759851045313,-329.0,0.00024,3]
[389794819,1759851045322,-329.0,0.00024,3]
[389794820,1759851045332,-329.0,0.00024,3]
[389794821,1759851045341,-329.0,0.00024,3]
[389794822,1759851045351,-329.0,0.00024,3]
[389794823,1759851045360,-332.97597387,0.00024,3]
[389794824,1759851045370,-172.0,0.00024,3]
[389794825,1759851045379,-173.62936439,0.00024,3]
[389794826,1759851045388,-250.0,0.00024,10]
[389794827,1759851045398,-429.0,0.00024,2]
[389794828,1759851045407,-1713.54983154,0.00024,2]
[389794829,1759851045417,-163.57265181,0.00024,2]
[389794830,1759851045426,-695.0,0.00024003,2]
[389794831,1759851045436,-500.0,0.00024052,2]
[389794832,1759851045445,-800.0,0.00024056,2]
[389794833,1759851045455,-666.66666667,0.00024056,20]
[389794834,1759851045464,-666.66666667,0.00024056,20]
[389794835,1759851045475,-695.0,0.00024058,2]
[389794836,1759851045484,-586.15133972,0.00024064,2]
[389794837,1759851045495,-2000.0,0.00024064,2]
[389794838,1759851045505,-1665.75923199,0.00024064,2]
[389794839,1759851045515,-1584.91108771,0.00024064,2]
[389794840,1759851045524,-2000.0,0.00024064,2]
[389794841,1759851045534,-2000.0,0.00024064,2]
[389794842,1759851045543,-2000.0,0.00024064,2]
[389794843,1759851045553,-2000.0,0.00024064,2]
[389794844,1759851045563,-2000.0,0.00024064,2]
[389794845,1759851045573,-2000.0,0.00024064,2]
[389794846,1759851045584,-2000.0,0.00024064,2]
[389794847,1759851045593,-2000.0,0.00024064,2]
[389794848,1759851045603,-800.0,0.00024068,2]
[389794849,1759851045613,-800.0,0.00024071,2]
[389794850,1759851045623,-154.1856986,0.00024076,2]
[389794851,1759851045632,-153.0,0.00024076,2]
[389794852,1759851045641,-800.0,0.00024088,2]
[389794853,1759851045651,-153.151123,0.0002409,7]
[389794854,1759851045661,-800.0,0.00024091,2]
[389794855,1759851045671,-655.31485932,0.00024092,2]
[389794856,1759851045680,-800.0,0.00024097,2]
[389794857,1759851045690,-2000.0,0.000241,2]
[389794858,1759851045700,-800.0,0.000241,2]
[389794859,1759851045709,-200.0,0.000241,2]
[389794860,1759851045719,-250.0,0.000241,10]
[389794861,1759851045729,-500.0,0.00024102,2]
[389794862,1759851045739,-800.0,0.00024127,2]
[389794863,1759851045749,-800.0,0.00024128,2]
[389794864,1759851045758,-5000.0,0.00024132,2]
[389794865,1759851045768,-160.0,0.00024137,5]
[389794866,1759851045778,-276.39604321,0.00024137,5]
[389794867,1759851045788,-703.77444915,0.00024137,2]
[389794868,1759851045834,-96.22555085,0.00024137,2]
[389794869,1759851045845,-500.0,0.00024139,2]
[389794870,1759851045855,-695.0,0.00024169,2]
[389794872,1759851045864,-800.0,0.00024171,2]
[389794874,1759851045876,-1975.360419,0.0002418,5]
[389794876,1759851045886,-4000.0,0.0002418,2]
[389794878,1759851045895,-4000.0,0.0002418,2]
[389794880,1759851045905,-1.01746075,0.0002418,2]
[389794883,1759851045997,-3998.98253925,0.0002418,2]
[389794884,1759851046007,-151.0,0.0002419,2]
[389794885,1759851046017,-151.0,0.0002419,2]
[389794886,1759851046027,-205.3908823,0.0002419,2]
[389794887,1759851046038,-500.82343283,0.0002419,2]
[389794888,1759851046049,-500.0,0.0002419,2]
[389794889,1759851046059,-151.0,0.0002419,2]
[389794890,1759851046068,-500.0,0.0002419,2]
[389794891,1759851046077,-500.0,0.0002419,2]
[389794892,1759851046087,-557.35058289,0.0002419,2]
[389794893,1759851046096,-500.0,0.0002419,2]
[389794894,1759851046106,-500.0,0.0002419,2]
[389794895,1759851046116,-151.0,0.0002419,2]
[389794896,1759851046128,-151.0,0.0002419,2]
[389794897,1759851046138,-257.23413138,0.0002419,2]
[389794899,1759851046147,-151.0,0.0002419,2]
[389794900,1759851046157,-151.0,0.0002419,2]
[389794901,1759851046167,-1235.0,0.0002419,2]
[389794902,1759851046178,-151.0,0.0002419,2]
[389794903,1759851046187,-151.0,0.0002419,2]
[389794904,1759851046197,-500.0,0.0002419,2]
[389794905,1759851046207,-160.0,0.000242,3]
[389794906,1759851046217,-234.20938206,0.000242,3]
[389794907,1759851046227,-533.72506543,0.000242,3]
[389794908,1759851046237,-402.02512307,0.000242,3]
[389794909,1759851046247,-152.0,0.000242,3]
[389794910,1759851046256,-152.0,0.000242,3]
[389794911,1759851046267,-152.0,0.000242,3]
[389794912,1759851046278,-152.0,0.000242,3]
[389794913,1759851046288,-152.0,0.000242,3]
[389794915,1759851046298,-152.0,0.000242,3]
[389794917,1759851046308,-329.0,0.000242,3]
[389794919,1759851046317,-329.0,0.000242,3]
[389794921,1759851046327,-329.0,0.000242,3]
[389794923,1759851046337,-329.0,0.000242,3]
[389794925,1759851046347,-329.0,0.000242,3]
[389794927,1759851046356,-152.0,0.000242,3]
[389794929,1759851046365,-329.0,0.000242,3]
[389794931,1759851046376,-152.0,0.000242,3]
[389794933,1759851046385,-329.0,0.000242,3]
[389794935,1759851046394,-152.0,0.000242,3]
[389794937,1759851046403,-329.0,0.000242,3]
[389794939,1759851046413,-152.0,0.000242,3]
[389794941,1759851046423,-161.52172655,0.000242,3]
[389794943,1759851046433,-152.0,0.000242,3]
[389794945,1759851046443,-152.0,0.000242,3]
[389794947,1759851046453,-152.0,0.000242,3]
[389794949,1759851046463,-152.0,0.000242,3]
[389794951,1759851046474,-152.0,0.000242,3]
[389794953,1759851046483,-152.0,0.000242,3]
[389794955,1759851046493,-152.0,0.000242,3]
[389794957,1759851046503,-152.0,0.000242,3]
[389794959,1759851046512,-152.0,0.000242,3]
[389794961,1759851046522,-152.0,0.000242,3]
[389794963,1759851046532,-152.0,0.000242,3]
[389794965,1759851046541,-152.0,0.000242,3]
[389794967,1759851046552,-152.0,0.000242,3]
[389794968,1759851046561,-152.0,0.000242,3]
[389794971,1759851046572,-152.0,0.000242,3]
[389794972,1759851046582,-152.0,0.000242,3]
[389794975,1759851046592,-152.0,0.000242,3]
[389794977,1759851046602,-1000.0,0.000242,5]
[389794978,1759851046612,-160.0,0.000242,3]
[389794980,1759851046621,-250.0,0.000242,10]
[389794983,1759851046631,-695.0,0.00024206,2]
[389794984,1759851046641,-695.0,0.00024218,2]
[389794986,1759851046651,-1913.852909,0.0002422,5]
[389794989,1759851046661,-1000.0,0.0002422,5]
[389794990,1759851046671,-800.0,0.0002423,2]
[389794992,1759851046680,-1000.0,0.00024238,2]
[389794995,1759851046690,-1000.0,0.00024238,2]
[389794996,1759851046699,-1000.0,0.00024238,2]
[389794998,1759851046708,-1000.0,0.00024238,2]
[389795000,1759851046718,-1000.0,0.00024238,2]
[389795002,1759851046727,-193.22369181,0.00024238,2]
[389795004,1759851046736,-420.71384306,0.00024238,2]
[389795006,1759851046746,-1000.0,0.00024238,2]
[389795009,1759851046755,-1000.0,0.00024238,2]
[389795011,1759851046765,-1000.0,0.0002424,5]
[389795013,1759851046774,-1000.0,0.0002424,5]
[389795015,1759851046783,-2000.0,0.00024244,2]
[389795017,1759851046793,-2000.0,0.00024244,2]
[389795019,1759851046807,-1083.868127,0.00024244,7]
[389795021,1759851046816,-1083.868127,0.00024244,7]
[389795023,1759851046826,-1083.868127,0.00024244,7]
[389795025,1759851046835,-151.0,0.00024244,7]
[389795027,1759851046846,-1083.868127,0.00024244,7]
[389795029,1759851046857,-151.0,0.00024244,7]
[389795031,1759851046866,-151.0,0.00024244,7]
[389795033,1759851046877,-151.0,0.00024244,7]
[389795035,1759851046887,-257.4962,0.00024244,7]
[389795037,1759851046897,-151.0,0.00024244,7]
[389795039,1759851046907,-151.0,0.00024244,7]
[389795041,1759851046916,-151.0,0.00024244,7]
[389795043,1759851046926,-151.0,0.00024244,7]
[389795045,1759851046935,-151.0,0.00024244,7]
[389795047,1759851046944,-427.341503,0.00024244,7]
[389795049,1759851046954,-151.0,0.00024244,7]
[389795051,1759851046964,-427.341503,0.00024244,7]
[389795053,1759851046975,-427.341503,0.00024244,7]
[389795055,1759851046985,-427.341503,0.00024244,7]
[389795057,1759851046996,-800.0,0.00024247,2]
[389795059,1759851047009,-409.91338707,0.00024248,2]
[389795061,1759851047018,-800.0,0.00024248,2]
[389795063,1759851047028,-625.90263283,0.0002425,7]
[389795065,1759851047037,-1000.0,0.0002426,5]
[389795067,1759851047050,-1000.0,0.0002426,5]
[389795069,1759851047059,-800.0,0.00024262,2]
[389795071,1759851047069,-800.0,0.00024268,2]
[389795073,1759851047079,-11338.01888585,0.00024273,2]
[389795075,1759851047089,-151.0,0.00024273,7]
[389795077,1759851047099,-151.0,0.00024273,7]
[389795079,1759851047110,-182.110453,0.00024273,7]
[389795081,1759851047119,-203.490105,0.00024273,7]
[389795083,1759851047128,-10000.0,0.00024273,7]
[389795085,1759851047137,-10000.0,0.00024273,7]
[389795087,1759851047147,-203.490105,0.00024273,7]
[389795089,1759851047156,-10000.0,0.00024273,7]
[389795090,1759851047166,-203.490105,0.00024273,7]
[389795091,1759851047176,-151.0,0.00024273,7]
[389795092,1759851047185,-1274.9628,0.00024273,7]
[389795093,1759851047194,-10000.0,0.00024273,7]
[389795094,1759851047204,-203.490105,0.00024273,7]
[389795095,1759851047214,-1274.9628,0.00024273,7]
[389795096,1759851047223,-356.78048,0.00024273,7]
[389795097,1759851047233,-1274.9628,0.00024273,7]
[389795098,1759851047243,-237.070353,0.00024273,7]
[389795099,1759851047252,-356.78048,0.00024273,7]
[389795100,1759851047262,-1274.9628,0.00024273,7]
[389795101,1759851047271,-237.070353,0.00024273,7]
[389795102,1759851047281,-356.78048,0.00024273,7]
[389795103,1759851047290,-151.0,0.00024273,7]
[389795104,1759851047365,-237.070353,0.00024273,7]
[389795105,1759851047375,-356.78048,0.00024273,7]
[389795106,1759851047385,-151.0,0.00024273,7]
[389795107,1759851047395,-237.070353,0.00024273,7]
[389795108,1759851047404,-246.970974,0.00024273,7]
[389795109,1759851047414,-246.970974,0.00024273,7]
[389795110,1759851047423,-246.970974,0.00024273,7]
[389795111,1759851047432,-246.970974,0.00024273,7]
[389795112,1759851047443,-151.0,0.00024273,7]
[389795113,1759851047453,-256.0,0.00024273,7]
[389795114,1759851047462,-256.0,0.00024273,7]
[389795115,1759851047474,-256.0,0.00024273,7]
[389795117,1759851047491,-256.0,0.00024273,7]
[389795119,1759851047502,-695.0,0.00024276,2]
[389795121,1759851047512,-800.0,0.00024279,2]
[389795123,1759851047521,-1000.0,0.0002428,5]
[389795125,1759851047531,-1000.0,0.0002428,5]
[389795127,1759851047544,-800.0,0.00024283,2]
[389795129,1759851047556,-800.0,0.00024289,2]
[389795131,1759851047566,-151.0,0.00024293,7]
[389795133,1759851047578,-300.096182,0.00024293,7]
[389795135,1759851047588,-151.0,0.00024293,7]
[389795137,1759851047599,-303.942813,0.00024293,7]
[389795139,1759851047609,-303.942813,0.00024293,7]
[389795141,1759851047620,-303.942813,0.00024293,7]
[389795143,1759851047632,-303.942813,0.00024293,7]
[389795145,1759851047642,-151.821237,0.00024293,7]
[389795147,1759851047652,-151.0,0.00024293,7]
[389795149,1759851047662,-819.784709,0.00024293,7]
[389795151,1759851047672,-819.784709,0.00024293,7]
[389795153,1759851047681,-819.784709,0.00024293,7]
[389795155,1759851047691,-819.784709,0.00024293,7]
[389795157,1759851047701,-384.245379,0.00024293,7]
[389795159,1759851047712,-384.245379,0.00024293,7]
[389795161,1759851047721,-384.245379,0.00024293,7]
[389795163,1759851047731,-384.245379,0.00024293,7]
[389795165,1759851047741,-686.875483,0.00024293,7]
[389795167,1759851047750,-686.875483,0.00024293,7]
[389795169,1759851047759,-686.875483,0.00024293,7]
[389795171,1759851047769,-686.875483,0.00024293,7]
[389795173,1759851047778,-1000.0,0.000243,5]
[389795175,1759851047788,-153.151123,0.000243,3]
[389795177,1759851047802,-24.77113674,0.000243,5]
[389795242,1759851048674,-3e-08,0.000243,5]
[389795243,1759851048687,-975.22886323,0.000243,5]
[389795244,1759851048697,-1856.43560645,0.000243,7]
[389795245,1759851048707,-250.0,0.000243,10]
[389795246,1759851048717,-800.0,0.00024314,2]
[389795247,1759851048728,-800.0,0.00024315,2]
[389795248,1759851048739,-1000.0,0.0002432,5]
[389795249,1759851048749,-1000.0,0.0002432,5]
[389795250,1759851048759,-1000.0,0.0002434,5]
[389795251,1759851048770,-1000.0,0.0002434,5]
[389795252,1759851048780,-163.1597617,0.00024342,2]
[389795253,1759851048791,-1000.0,0.00024342,2]
[389795254,1759851048805,-587.52997671,0.00024342,2]
[389795255,1759851048815,-1000.0,0.00024342,2]
[389795256,1759851048826,-763.52879984,0.00024342,2]
[389795257,1759851048837,-482.82349399,0.00024342,2]
[389795258,1759851048848,-2815.8955961,0.00024343,2]
[389795259,1759851048858,-1000.0,0.0002436,5]
[389795260,1759851048869,-1000.0,0.0002436,5]
[389795261,1759851048882,-715.29644764,0.0002437,2]
[389795262,1759851048892,-170.92839409,0.00024373,2]
[389795263,1759851048902,-500.0,0.00024373,2]
[389795264,1759851048912,-449.72422841,0.00024373,2]
[389795265,1759851048923,-500.0,0.00024373,2]
[389795266,1759851048933,-169.08917184,0.00024373,2]
[389795269,1759851049599,-0.02105035,0.00020731,2]
[389795270,1759851049613,-410.97894965,0.00020731,2]
[389795271,1759851049624,-411.0,0.00023731,2]
[389795272,1759851049636,-330.91082816,0.00024373,2]
[389795273,1759851049647,-151.0,0.00024373,7]
[389795274,1759851049658,-151.0,0.00024373,7]
[389795275,1759851049669,-151.0,0.00024373,7]
[389795276,1759851049681,-158.756521,0.00024373,7]
[389795277,1759851049693,-158.756521,0.00024373,7]
[389795278,1759851049705,-158.756521,0.00024373,7]
[389795279,1759851049716,-151.0,0.00024373,7]
[389795280,1759851049727,-158.756521,0.00024373,7]
[389795281,1759851049739,-239.745371,0.00024373,7]
[389795282,1759851049750,-151.0,0.00024373,7]
[389795283,1759851049762,-239.745371,0.00024373,7]
[389795284,1759851049774,-239.745371,0.00024373,7]
[389795285,1759851049787,-239.745371,0.00024373,7]
[389795286,1759851049803,-151.0,0.00024373,7]
[389795287,1759851049814,-151.0,0.00024373,7]
[389795288,1759851049826,-288.200192,0.00024373,7]
[389795289,1759851049839,-221.129594,0.00024373,7]
[389795290,1759851049850,-151.0,0.00024373,7]
[389795291,1759851049862,-221.129594,0.00024373,7]
[389795292,1759851049875,-151.0,0.00024373,7]
[389795293,1759851049886,-221.129594,0.00024373,7]
[389795294,1759851049898,-151.0,0.00024373,7]
[389795295,1759851049910,-221.129594,0.00024373,7]
[389795296,1759851049922,-151.0,0.00024373,7]